Cogmind - Beta 11.1 @@@ ROGUE MODE // 2022.07.05 @ 12:02:38 Player: Demise Result: Destroyed by S-10 Pest with Light Assault Rifle Performance ------------- Evolutions (0) 0 Regions Visited (2) 400 Robots Destroyed (20) 100 Value Destroyed (460) 460 Prototype IDs (0) 0 Alien Tech Used (0) 0 Bonus (0) 0 TOTAL SCORE: 960 Bonus ------- None Cogmind --------- Core Integrity 0/250 Matter 283/300 Energy 100/100 System Corruption 1% Temperature Cool (0) Movement Rolling (140) Ox4 Location -10/Mines Parts ------- > --- POWER (1) -------- (None) > --- PROPULSION (2) --- Wheel > --- UTILITY (2) ------ Heat Sink High-capacity Storage Unit > --- WEAPON (2) ------- Light Assault Rifle Light Assault Rifle > --- INVENTORY (20) --- Signal Interpreter Signal Interpreter Seismic Detector Light Armor Plating Light Armor Plating Medium Laser Small Laser Small Laser Light Assault Rifle Light Cannon Grenade Launcher Datajack Peak State ------------ > --- POWER ------------ Light Nuclear Core > --- PROPULSION ------- Wheel Wheel > --- UTILITY ---------- Heat Sink High-capacity Storage Unit > --- WEAPON ----------- Light Assault Rifle Light Assault Rifle > --- INVENTORY -------- Signal Interpreter Signal Interpreter Seismic Detector Light Armor Plating Light Armor Plating Medium Laser Light Assault Rifle Light Cannon Grenade Launcher Datajack [Rating: 10] Favorites ----------- Power Light Nuclear Core Engine Ion Engine Power Core Light Nuclear Core Propulsion Wheel Wheel Wheel Utility High-capacity Storage Unit Device Heat Sink Storage High-capacity Storage Unit Processor Signal Interpreter Weapon Light Assault Rifle Energy Gun Medium Laser Ballistic Gun Light Assault Rifle Build | -11 -10 -10 ------- Run | Scr Mat Min Slots Evolved . | . . . Power . | . . . Propulsion . | . . . Utility . | . . . Weapon . | . . . Parts Attached 22 | 7 15 . Power 3 | 1 2 . Engine 1 | 1 . . Core 2 | . 2 . Reactor . | . . . Propulsion 5 | 2 3 . Treads . | . . . Leg . | . . . Wheel 5 | 2 3 . Hover . | . . . Flight . | . . . Utility 10 | 2 8 . Device 6 | 1 5 . Storage 3 | 1 2 . Processor 1 | . 1 . Hackware . | . . . Protection . | . . . Artifact . | . . . Weapon 4 | 2 2 . Energy Gun 1 | . 1 . Energy Cannon . | . . . Ballistic Gun 3 | 2 1 . Ballistic Cannon . | . . . Launcher . | . . . Special Weapon . | . . . Impact Weapon . | . . . Slashing Weapon . | . . . Piercing Weapon . | . . . Special Melee Weapon . | . . . Unidentified Prototypes . | . . . Parts Lost 4 | . 3 1 Power 1 | . . 1 Propulsion 2 | . 2 . Utility . | . . . Weapon 1 | . 1 . Highest Loss Streak 2 | . 2 1 To Critical Strikes . | . . . Average Slot Usage (%) 95 | . 95 81 Engine 4 | . 4 . Core 9 | . 9 10 Wheel 25 | . 25 14 Device 12 | . 12 14 Storage 13 | . 13 14 Energy Gun 1 | . 1 . Ballistic Gun 26 | . 26 28 Naked Turns . | . . . Heaviest Build 49 | 13 49 48 Greatest Support 20 | 20 20 10 Greatest Overweight (x) 4 | . 4 4 Average Overweight (x) 1 | . 1 4 Largest Inventory Capacity 20 | 8 20 20 Average Capacity 18 | 7 19 20 Most Carried 13 | 2 13 12 Average Carried 5 | . 5 12 Final Capacity 20 | 8 20 20 Final Carried 12 | 2 12 12 Class Distribution -------------------- 63% | Mutant 36% | Scavenger-Mutant Dominant Class ---------------- Mutant | -10/Materials Mutant | -10/Mines Resources | -11 -10 -10 ----------- Run | Scr Mat Min Matter Collected 548 | 280 268 . Remotely . | . . . Salvage Created 683 | 92 561 30 Parts 43 | 7 31 5 Haulers Intercepted 1 | . 1 . Recyclers Shooed 2 | 1 1 . Parts Field Recycled . | . . . Retrieved Matter . | . . . Parts Self-Destructed . | . . . Prevented . | . . . Kills | -11 -10 -10 ------- Run | Scr Mat Min Combat Hostiles Destroyed 14 | . 12 2 Guns 13 | . 11 2 Classes Destroyed 7 | 2 5 . Tunneler 2 | 1 1 . Hauler 1 | . 1 . Recycler 1 | 1 . . Operator 1 | . 1 . Watcher 1 | . 1 . Swarmer 4 | . 2 2 Grunt 10 | . 10 . Best Kill Streak 3 | 2 3 2 Combat Bots Only 3 | . 3 2 Max Kills in Single Turn 1 | 1 1 1 Gunslinging . | . . . Exploded . | . . . Melee . | . . . Uniques/NPCs Destroyed . | . . . Combat | -11 -10 -10 -------- Run | Scr Mat Min Damage Taken 697 | . 634 63 Core 258 | . 238 20 Absorbed by Shields . | . . . Regen/Repaired (Parts) 35 | . 35 . Core Remaining (%) 100 | 100 . . Volleys Fired 80 | 5 68 7 Largest 2 | 2 2 2 Hottest 70 | 40 70 40 Shots Fired 158 | 10 134 14 Gun 158 | 10 134 14 Cannon . | . . . Launcher . | . . . Special . | . . . Kinetic 148 | 10 124 14 Thermal 10 | . 10 . Explosive . | . . . Electromagnetic . | . . . Robot Hit Streak 17 | 6 17 3 Robot Miss Streak 2 | 1 2 1 Penetration Max . | . . . Secondary Targets . | . . . Shots Hit Robots 118 | 8 102 8 Core Hits 48 | 5 38 5 Critical Kills . | . . . Critical Parts Destroyed . | . . . Critical Strikes 1 | . 1 . Burn 1 | . 1 . Melee Attacks . | . . . Impact . | . . . Slashing . | . . . Piercing . | . . . Sneak Attacks . | . . . Combat Hostiles . | . . . Follow-up Attacks . | . . . Damage Inflicted 981 | 65 855 61 Guns 981 | 65 855 61 Cannons . | . . . Explosions . | . . . Melee . | . . . Ramming . | . . . Kinetic 881 | 65 755 61 Thermal 100 | . 100 . Explosive . | . . . Electromagnetic . | . . . Impact . | . . . Slashing . | . . . Piercing . | . . . Highest Corruption 1 | . 1 1 Average Corruption 1 | . 1 1 Corruption Purged . | . . . Corruption Blocked . | . . . Effects 6 | . 5 1 Message Errors 1 | . 1 . Matter Fused 2 | . 1 1 Heat Flow Errors 1 | . 1 . Energy Discharges 1 | . 1 . Weapon Failures 1 | . 1 . Overload Shots . | . . . Overflow Damage . | . . . Projectiles . | . . . Explosions . | . . . Melee . | . . . Knockbacks . | . . . Impact . | . . . Kinetic . | . . . Secondary . | . . . Self-Inflicted Damage . | . . . Shots . | . . . Rammed . | . . . Targets Rammed . | . . . Kicked . | . . . Crushed . | . . . Highest Temperature 128 | . 128 . Average Temperature 17 | . 17 . Received Heat Transfer 366 | . 366 . Siege Activations . | . . . Robots Corrupted . | . . . Combat Hostiles . | . . . Parts Fried . | . . . Impact Corruptions . | . . . Robots Melted 1 | . 1 . Combat Hostiles 1 | . 1 . Parts Melted . | . . . Heat Transferred 370 | . 370 . Parts Sabotaged . | . . . Parts Stolen . | . . . Parts Stripped . | . . . Power Chain Reactions . | . . . Missiles Intercepted . | . . . Alert | -11 -10 -10 ------- Run | Scr Mat Min Peak Influence 251 | 10 251 136 Initial 76 | . 6 76 Average 107 | 4 113 90 Maximum Alert Level 1 | . 1 . Low Security (%) 79 | 100 77 100 Level 1 20 | . 22 . Level 2 . | . . . Level 3 . | . . . Level 4 . | . . . Level 5 . | . . . High Security . | . . . Max Security . | . . . Squads Dispatched 4 | . 4 . Investigation 3 | . 3 . Extermination . | . . . Reinforcement 1 | . 1 . Assault . | . . . Garrison . | . . . Intercept . | . . . Searches Triggered . | . . . Construction Impeded . | . . . Haulers Reinforced . | . . . Active Scanning Responses . | . . . Cargo Convoy Interrupts . | . . . Stealth | -11 -10 -10 --------- Run | Scr Mat Min Distress Signals . | . . . Communications Jammed . | . . . Distress Signals . | . . . Times Spotted 23 | . 17 6 Peak Tracking Total 4 | . 4 3 Tactical Retreats 2 | . 1 1 Traps | -11 -10 -10 ------- Run | Scr Mat Min Traps Triggered 2 | . 2 . Indirectly . | . . . Trap Hack Attempts . | . . . Triggered . | . . . Disarmed . | . . . Reprogrammed . | . . . Reused . | . . . Traps Extracted . | . . . Installed . | . . . Triggered . | . . . Machines | -11 -10 -10 ---------- Run | Scr Mat Min Machines Disabled . | . . . Max in Single Turn . | . . . Machines Sabotaged . | . . . Garrisons Compromised . | . . . Overloaded Fab Kills . | . . . Hacking | -11 -10 -10 --------- Run | Scr Mat Min Machines Accessed 9 | . 9 . Terminals 6 | . 6 . Fabricators . | . . . Repair Stations 1 | . 1 . Recycling Units 2 | . 2 . Scanalyzers . | . . . Garrison Access . | . . . Total Hacks 26 | . 26 . Successful 23 | . 23 . Failed 2 | . 2 . Catastrophic 1 | . 1 . Database Lockouts 1 | . 1 . Manual 20 | . 20 . Terminals 18 | . 18 . Fabricators . | . . . Repair Stations 2 | . 2 . Recycling Units 6 | . 6 . Scanalyzers . | . . . Garrison Access . | . . . Terminal Hacks 8 | . 8 . Robot Analysis 4 | . 4 . Branch Access Points 1 | . 1 . Terminal Index 1 | . 1 . Locate Traps 1 | . 1 . Zone Layout 1 | . 1 . Fabricator Hacks . | . . . Repair Station Hacks 2 | . 2 . Scan Component 1 | . 1 . Repair 1 | . 1 . Recycling Unit Hacks 3 | . 3 . Recycle Component 1 | . 1 . Retrieve Components 2 | . 2 . Scanalyzer . | . . . Garrison Access Hacks . | . . . Unauthorized Hacks 10 | . 10 . Terminals 8 | . 8 . Assimilate 1 | . 1 . Botnet 6 | . 6 . Operators 1 | . 1 . Fabricators . | . . . Repair Stations . | . . . Recycling Units 2 | . 2 . Tunnel 2 | . 2 . Scanalyzers . | . . . Garrison Access . | . . . Data Cores Recovered . | . . . Used . | . . . Hacking Detections 4 | . 4 . Full Trace Events 1 | . 1 . Feedback Events . | . . . Feedback Blocked . | . . . Robot Schematics Acquired . | . . . Robots Built . | . . . Authchips . | . . . Time . | . . . Total Robot Build Rating . | . . . Part Schematics Acquired . | . . . Parts Built . | . . . Authchips . | . . . Time . | . . . Total Part Build Rating . | . . . Parts Repaired 1 | . 1 . Time 26 | . 26 . Parts Recycled 1 | . 1 . Recycled Matter . | . . . Retrieved Matter . | . . . Retrieved Components 18 | . 18 . Parts Scanalyzed . | . . . Part Schematics Acquired . | . . . Parts Damaged . | . . . Bothacking | -11 -10 -10 ------------ Run | Scr Mat Min Used RIF Installer . | . . . Robots Hacked . | . . . Non-combat . | . . . Combat . | . . . Robot Hacks Applied . | . . . Relay Couplers Released . | . . . Fabnet Peak Effective % . | . . . Robots Rewired . | . . . Allies Hacked . | . . . Hacks Repelled . | . . . Allies | -11 -10 -10 -------- Run | Scr Mat Min Total Allies . | . . . Largest Group . | . . . Highest-Rated Group . | . . . Highest-Rated Ally . | . . . Total Orders . | . . . Ally Attacks . | . . . Total Damage . | . . . Kills . | . . . Allies Corrupted . | . . . Allies Melted . | . . . Intel | -11 -10 -10 ------- Run | Scr Mat Min Robot Analysis Total 4 | . 4 . Derelict Logs Recovered . | . . . Drone Launches . | . . . Drone Recoveries . | . . . Exploration | -11 -10 -10 ------------- Run | Scr Mat Min Turns Passed 1008 | 48 919 41 Spaces Moved 606 | 29 560 17 Core 2 | 2 . . Treads . | . . . Legs . | . . . Wheels 604 | 27 560 17 Hover . | . . . Flight . | . . . Fastest Speed 50 | 50 80 140 Average Speed 108 | 77 109 140 Slowest Speed 140 | 80 140 140 Overloaded Moves . | . . . Propulsion Burnouts . | . . . Robots Hopped . | . . . Cave-ins Triggered . | . . . Exploration Rate (%) 33 | 3 92 6 Regions Visited 2 Branch Regions 1 Pre-discovered Areas 2 | . 2 . Known Exits Taken 1 | . 1 . Unknown Exits Taken 1 | 1 . . Scrap Searched . | . . . Spaces Dug . | . . . Terrain Destroyed . | . . . Melee . | . . . Projectile . | . . . AOE . | . . . Terrain Rammed . | . . . Walls Destroyed . | . . . Machines Disabled . | . . . Actions | -11 -10 -10 --------- Run | Scr Mat Min Total 823 | 43 756 24 Wait 94 | . 94 . Move 604 | 28 559 17 Hop . | . . . Pick Up 15 | 3 12 . Fast Attach 11 | 6 5 . Attach 4 | 1 3 . Detach 4 | . 4 . Swap 7 | . 7 . Drop 4 | . 4 . Fire 80 | 5 68 7 Melee . | . . . Ram . | . . . Kick . | . . . Crush . | . . . Escape Stasis . | . . . Rewire . | . . . Trap . | . . . Miscellaneous . | . . . Route ------- -11/Scrapyard -10/Materials (discovered 5 exits: *Mat x3 / *Min x2) -10/Mines History --------- Turn | Location | Event 16 | -11/Scrapyard | Discovered new exit (range 15) 49 | -11/Scrapyard | Entered Materials 181 | -10/Materials | Discovered new exit (range 15) 248 | -10/Materials | Central database locked down 295 | -10/Materials | Discovered new exit (range 8) 324 | -10/Materials | Build established: Mutant 429 | -10/Materials | Discovered new exit (range 14) 516 | -10/Materials | Core integrity fell below 50% 558 | -10/Materials | Identified exit to Materials 615 | -10/Materials | Identified exit to Mines 625 | -10/Materials | Core integrity fell below 20% 698 | -10/Materials | Discovered exit to Materials (range 16) 735 | -10/Materials | Repaired Wheel 927 | -10/Materials | Build established: Scavenger-Mutant 968 | -10/Materials | Entered Mines 1009 | -10/Mines | Destroyed by S-10 Pest with Light Assault Rifle Last Messages --------------- 00865_ ALERT: Suspicious activity at Recycling Unit M002. Dispatching Investigation squad. 00878_ G-34 Mercenary destroyed. 00880_ Acquired 28 matter. 00893_ G-34 Mercenary destroyed. 00896_ System corrupted: Lgt. Assault Rifle jammed. 00897_ Wheel destroyed. 00904_ G-34 Mercenary destroyed. 00906_ Acquired 10 matter. 00941_ T-07 Excavator destroyed. 00951_ Acquired 8 matter. 00954_ Acquired Seismic Detector. 00959_ System corrupted: Heat flow error (+156). 00959_ Dropped Seismic Detector. LOCATION=MINES GOAL=ESCAPE Something is scanning the area. 00977_ System corrupted: Matter fused (-8). 00990_ Lgt. Nuclear Core destroyed. 00991_ S-10 Pest destroyed. Map ----- +----------------------------------------------------+ | | | | | | | | | | | | | | | | | | | | | | | | | | | | | | | ???????????????????????????????????????????????? | | ???????????????????????????????????????????????? | | ???????????????????????????????????????????????? | | ???????????????????????????????????????????????? | | ??????????????????????????????????????? ??????? | | ????????????????????????????????????? ??????? | | ??????????????????????????????????? ???????? | | ????????????????????????????????? ?????????? | | ?????????????????# ######### """ ""?????????? | | ?????????????????# =%*ss $ """ ""?????????? | | ?????????????????# ##@##### """ ""?????????? | | ????????????????????????# #?????? ?????????? | | ????????????????????????# #???????? """????????? | | ????????????????????????# #??????????"?????????? | | ????????????????????????# ####?????????????????? | | ????????????????????##### ##????????????????? | | ????????????????????# #????????????????? | | ????????????????????# # #???????????????? | | ????????????????????#??## #??????????????? | | ????????????????????????#### #??????????????? | | ???????????????????????????## ##??????????????? | | ?????????????????????????????###???????????????? | | ???????????????????????????????????????????????? | | ???????????????????????????????????????????????? | | ???????????????????????????????????????????????? | | ???????????????????????????????????????????????? | | ???????????????????????????????????????????????? | | ???????????????????????????????????????????????? | | ???????????????????????????????????????????????? | | ???????????????????????????????????????????????? | | ???????????????????????????????????????????????? | | ???????????????????????????????????????????????? | | ???????????????????????????????????????????????? | | ???????????????????????????????????????????????? | | ???????????????????????????????????????????????? | +----------------------------------------------------+ Best States ------------- Heat Dissipation 35 Energy Generation 14 Energy Capacity 250 Matter Stores 300 Matter Capacity 300 Sight Range 16 Terrain Scan Density 10 Evasion (%) 44 Item Schematics ----------------- None Robot Schematics ------------------ None Fabricated ------------ Nothing Alien Tech Used ----------------- None Achievements -------------- None Challenges ------------ None Game ------ Seed VisualMissileTendrils Manual? 0 Play Time 00:08:30 Cumulative 661.3 hours Start 2022.07.05 @ 11:54:10 End 2022.07.05 @ 12:02:38 Sessions 1 Manual Loads 0 Difficulty Rogue Special Mode None Game No. 547 Rogue 547 Adventurer 0 Explorer 0 Win Type - Total 8 Types 7/0/0/1/0/0/0/0/0 Lore% 75 Gallery% 86 Achievement% 69 Wizard Run 0 Options --------- ASCII 0 Keyboard 1 Movement Numpad Keybinds 0 Fullscreen 1 Font 12/Terminus Map View 83x54 Tactical HUD 1 Map Filters NONE Filters NONE Steam 1 RUN: 4279d61c-ae9f-4dce-a7ae-1d5a0b96803f